fUST/lending_fUST_20250109
["ID","MTS","AMOUNT","RATE_DAILY","PERIOD"]
[348149470,1736356116403,-500.0,0.00019178,2]
[348149471,1736356116426,-500.0,0.00019178,2]
[348149472,1736356116451,-500.0,0.00019178,2]
[348149473,1736356116474,-500.0,0.00019178,2]
[348149474,1736356116496,-500.0,0.00019178,2]
[348149475,1736356116516,-500.0,0.00019178,2]
[348149476,1736356116539,-500.0,0.00019178,2]
[348149477,1736356116560,-510.75747027,0.00019178,2]
[348149478,1736356116581,-500.0,0.00019178,2]
[348149479,1736356116606,-500.0,0.00019178,2]
[348149480,1736356116627,-500.0,0.00019178,2]
[348149481,1736356116651,-500.0,0.00019178,2]
[348149482,1736356116674,-580.01395542,0.00019178,2]
[348149483,1736356116698,-500.0,0.00019178,2]
[348149484,1736356116721,-500.0,0.00019178,2]
[348149485,1736356116741,-500.0,0.00019178,2]
[348149486,1736356116762,-500.0,0.00019178,2]
[348149487,1736356116784,-500.0,0.00019178,2]
[348149488,1736356116805,-500.0,0.00019178,2]
[348149489,1736356116827,-500.59110732,0.00019178,2]
[348149490,1736356116851,-500.0,0.00019178,2]
[348149491,1736356116872,-500.0,0.00019178,2]
[348149492,1736356116895,-500.0,0.00019178,2]
[348149493,1736356116917,-500.0,0.00019178,2]
[348149494,1736356116941,-500.0,0.00019178,2]
[348149495,1736356116968,-500.0,0.00019178,2]
[348149496,1736356116991,-500.0,0.00019178,2]
[348149497,1736356117014,-500.0,0.00019178,2]
[348149498,1736356117038,-500.0,0.00019178,2]
[348149499,1736356117059,-508.74780972,0.00019178,2]
[348149500,1736356117081,-500.0,0.00019178,2]
[348149501,1736356117102,-500.0,0.00019178,2]
[348149502,1736356117123,-500.0,0.00019178,2]
[348149503,1736356117147,-500.0,0.00019178,2]
[348149504,1736356117172,-500.0,0.00019178,2]
[348149505,1736356117196,-500.0,0.00019178,2]
[348149506,1736356117218,-500.0,0.00019178,2]
[348149507,1736356117239,-500.0,0.00019178,2]
[348149508,1736356117261,-500.0,0.00019178,2]
[348149509,1736356117283,-500.0,0.00019178,2]
[348149510,1736356117305,-462.84658063,0.00019178,2]
[348149511,1736356117327,-502.66031082,0.00019178,2]
[348149512,1736356117349,-500.0,0.00019178,2]
[348149513,1736356117371,-500.0,0.00019178,2]
[348149514,1736356117393,-500.0,0.00019178,2]
[348149515,1736356117413,-500.0,0.00019178,2]
[348149516,1736356117435,-500.0,0.00019178,2]
[348149517,1736356117460,-500.0,0.00019178,2]
[348149518,1736356117483,-500.0,0.00019178,2]
[348149519,1736356117506,-500.0,0.00019178,2]
[348149520,1736356117528,-500.0,0.00019178,2]
[348149521,1736356117550,-500.0,0.00019178,2]
[348149522,1736356117572,-500.0,0.00019178,2]
[348149523,1736356117593,-500.0,0.00019178,2]
[348149524,1736356117615,-500.0,0.00019178,2]
[348149525,1736356117636,-500.0,0.00019178,2]
[348149526,1736356117659,-500.0,0.00019178,2]
[348149527,1736356117681,-500.0,0.00019178,2]
[348149528,1736356117706,-500.0,0.00019178,2]
[348149529,1736356117728,-500.0,0.00019178,2]
[348149530,1736356117751,-500.0,0.00019178,2]
[348149531,1736356117773,-500.0,0.00019178,2]
[348149532,1736356117795,-500.0,0.00019178,2]
[348149533,1736356117818,-500.0,0.00019178,2]
[348149534,1736356117841,-500.0,0.00019178,2]
[348149535,1736356117867,-500.0,0.00019178,2]
[348149536,1736356117889,-500.0,0.00019178,2]
[348149537,1736356117911,-507.82719722,0.00019178,2]
[348149538,1736356117938,-500.0,0.00019178,2]
[348149539,1736356117966,-500.0,0.00019178,2]
[348149540,1736356117989,-500.0,0.00019178,2]
[348149541,1736356118012,-500.0,0.00019178,2]
[348149542,1736356118033,-507.16255691,0.00019178,2]
[348149543,1736356118055,-500.0,0.00019178,2]
[348149544,1736356118077,-500.0,0.00019178,2]
[348149545,1736356118099,-500.0,0.00019178,2]
[348149546,1736356118122,-500.0,0.00019178,2]
[348149547,1736356118146,-501.92,0.00019178,2]
[348149548,1736356118171,-500.0,0.00019178,2]
[348149549,1736356118195,-500.0,0.00019178,2]
[348149550,1736356118216,-500.0,0.00019178,2]
[348149551,1736356118239,-408.03237596,0.00019178,2]
[348149594,1736356236366,-3000.0,0.00019078,2]
[348149596,1736356236375,-1419.08951334,0.00019078,2]
[348149598,1736356236384,-300.0,0.00019177,2]
[348149600,1736356236394,-91.96762404,0.00019178,2]
[348149602,1736356236403,-500.0,0.00019178,2]
[348149604,1736356236412,-500.0,0.00019178,2]
[348149605,1736356236421,-3186.03,0.00019178,2]
[348149607,1736356236430,-500.0,0.00019178,2]
[348149609,1736356236440,-500.0,0.00019178,2]
[348149611,1736356236449,-500.0,0.00019178,2]
[348149613,1736356236458,-500.0,0.00019178,2]
[348149615,1736356236468,-500.0,0.00019178,2]
[348149617,1736356236477,-500.0,0.00019178,2]
[348149619,1736356236486,-535.97,0.00019178,2]
[348149620,1736356236495,-500.0,0.00019178,2]
[348149622,1736356236504,-500.0,0.00019178,2]
[348149624,1736356236513,-500.0,0.00019178,2]
[348149626,1736356236526,-500.0,0.00019178,2]
[348149628,1736356236536,-500.0,0.00019178,2]
[348149630,1736356236544,-500.0,0.00019178,2]
[348149632,1736356236554,-500.0,0.00019178,2]
[348149634,1736356236564,-500.0,0.00019178,2]
[348149635,1736356236574,-500.0,0.00019178,2]
[348149637,1736356236583,-500.0,0.00019178,2]
[348149639,1736356236593,-500.0,0.00019178,2]
[348149641,1736356236602,-500.0,0.00019178,2]
[348149643,1736356236612,-500.0,0.00019178,2]
[348149645,1736356236622,-500.0,0.00019178,2]
[348149647,1736356236631,-500.0,0.00019178,2]
[348149649,1736356236641,-519.95,0.00019178,2]
[348149651,1736356236650,-500.0,0.00019178,2]
[348149652,1736356236659,-500.0,0.00019178,2]
[348149654,1736356236668,-500.0,0.00019178,2]
[348149656,1736356236677,-500.0,0.00019178,2]
[348149658,1736356236686,-500.0,0.00019178,2]
[348149660,1736356236695,-500.0,0.00019178,2]
[348149662,1736356236706,-500.0,0.00019178,2]
[348149664,1736356236716,-509.34896983,0.00019178,2]
[348149666,1736356236726,-500.0,0.00019178,2]
[348149668,1736356236735,-500.0,0.00019178,2]
[348149669,1736356236745,-500.0,0.00019178,2]
[348149671,1736356236754,-500.0,0.00019178,2]
[348149673,1736356236764,-500.0,0.00019178,2]
[348149675,1736356236777,-500.0,0.00019178,2]
[348149677,1736356236786,-500.0,0.00019178,2]
[348149679,1736356236796,-500.0,0.00019178,2]
[348149681,1736356236806,-500.0,0.00019451,3]
[348149683,1736356236816,-501.0,0.00019452,3]
[348149685,1736356236826,-304.12,0.00019452,3]
[348149686,1736356236835,-500.0,0.00019452,3]
[348149688,1736356236845,-500.0,0.00019452,3]
[348149690,1736356236854,-500.0,0.00019452,3]
[348149692,1736356236864,-500.0,0.00019452,3]
[348149694,1736356236874,-500.0,0.00019452,3]
[348149696,1736356236883,-500.0,0.00019452,3]
[348149697,1736356236896,-500.0,0.00019452,3]
[348149699,1736356236906,-500.0,0.00019452,3]
[348149709,1736356237009,-504.09440847,0.00019452,3]
[348149711,1736356237020,-500.0,0.00019452,3]
[348149713,1736356237036,-500.0,0.00019452,3]
[348149715,1736356237046,-217.32861084,0.00019452,3]
[348149717,1736356237056,-501.74947503,0.00019452,3]
[348149718,1736356237065,-500.0,0.00019452,3]
[348149720,1736356237076,-500.0,0.00019452,3]
[348149722,1736356237085,-429.87495867,0.00019452,3]
[348149724,1736356237095,-500.0,0.00019452,3]
[348149726,1736356237104,-500.0,0.00019452,3]
[348149728,1736356237114,-500.0,0.00019452,3]
[348149730,1736356237124,-500.92904448,0.00019452,3]
[348149731,1736356237134,-347.20816199,0.00019452,3]
[348149733,1736356237144,-216.17,0.00019452,3]
[348149735,1736356237153,-344.66,0.00019452,3]
[348149737,1736356237162,-500.0,0.00019452,3]
[348149739,1736356237172,-500.0,0.00019452,3]
[348149741,1736356237180,-500.0,0.00019452,3]
[348149742,1736356237190,-500.0,0.00019452,3]
[348149744,1736356237199,-500.0,0.00019452,3]
[348149746,1736356237211,-500.0,0.00019452,3]
[348149748,1736356237221,-500.0,0.00019452,3]
[348149750,1736356237231,-500.0,0.00019452,3]
[348149752,1736356237240,-500.0,0.00019452,3]
[348149754,1736356237250,-500.0,0.00019452,3]
[348149756,1736356237260,-500.0,0.00019452,3]
[348149758,1736356237268,-500.0,0.00019452,3]
[348149759,1736356237283,-500.0,0.00019452,3]
[348149761,1736356237292,-532.4,0.00019452,3]
[348149763,1736356237301,-500.0,0.00019452,3]
[348149765,1736356237311,-500.0,0.00019452,3]
[348149767,1736356237321,-500.0,0.00019452,3]
[348149769,1736356237330,-500.0,0.00019452,3]
[348149771,1736356237340,-604.4,0.00019452,3]
[348149773,1736356237350,-500.0,0.00019452,3]
[348149775,1736356237359,-510.56026234,0.00019452,3]
[348149777,1736356237369,-533.60240286,0.00019452,3]
[348149779,1736356237379,-500.0,0.00019452,3]
[348149781,1736356237389,-500.0,0.00019452,3]
[348149783,1736356237398,-500.0,0.00019452,3]
[348149785,1736356237408,-500.0,0.00019452,3]
[348149787,1736356237417,-500.0,0.00019452,3]
[348149790,1736356237427,-500.0,0.00019452,3]
[348149791,1736356237436,-500.0,0.00019452,3]
[348149792,1736356237446,-500.0,0.00019452,3]
[348149793,1736356237455,-500.0,0.00019452,3]
[348149794,1736356237465,-500.0,0.00019452,3]
[348149796,1736356237474,-500.0,0.00019452,3]
[348149798,1736356237484,-500.0,0.00019452,3]
[348149800,1736356237492,-500.0,0.00019452,3]
[348149802,1736356237501,-500.0,0.00019452,3]
[348149804,1736356237511,-500.0,0.00019452,3]
[348149805,1736356237520,-500.0,0.00019452,3]
[348149806,1736356237534,-509.0970405,0.00019452,3]
[348149807,1736356237544,-500.0,0.00019452,3]
[348149808,1736356237554,-568.13,0.00019452,3]
[348149809,1736356237565,-500.0,0.00019452,3]
[348149810,1736356237576,-500.0,0.00019452,3]
[348149811,1736356237586,-163.02818127,0.00019452,3]
[348149812,1736356237596,-500.0,0.00019452,3]
[348149813,1736356237605,-500.0,0.00019452,3]
[348149814,1736356237615,-566.05,0.00019452,3]
[348149815,1736356237624,-500.0,0.00019452,3]
[348149816,1736356237633,-500.0,0.00019452,3]
[348149817,1736356237642,-500.0,0.00019452,3]
[348149818,1736356237652,-501.92,0.00019452,3]
[348149819,1736356237662,-500.0,0.00019452,3]
[348149820,1736356237671,-500.0,0.00019452,3]
[348149821,1736356237681,-500.0,0.00019452,3]
[348149822,1736356237691,-500.0,0.00019452,3]
[348149823,1736356237701,-3186.03,0.00019452,3]
[348149824,1736356237711,-500.0,0.00019452,3]
[348149826,1736356237721,-506.72,0.00019452,3]
[348149827,1736356237731,-500.0,0.00019452,3]
[348149829,1736356237741,-316.35,0.00019452,3]
[348149830,1736356237751,-645.51,0.00019452,3]
[348149832,1736356237760,-500.0,0.00019452,3]
[348149834,1736356237770,-500.0,0.00019452,3]
[348149836,1736356237785,-228.43,0.00019452,3]
[348149838,1736356237796,-500.0,0.00019452,3]
[348149840,1736356237806,-500.0,0.00019452,3]
[348149842,1736356237815,-350.5,0.00019452,3]
[348149845,1736356237825,-500.0,0.00019452,3]
[348149846,1736356237835,-500.0,0.00019452,3]
[348149849,1736356237845,-519.95,0.00019452,3]
[348149851,1736356237854,-500.0,0.00019452,3]
[348149852,1736356237864,-500.0,0.00019452,3]
[348149855,1736356237873,-500.0,0.00019452,3]
[348149856,1736356237886,-500.0,0.00019452,3]
[348149859,1736356237896,-500.0,0.00019452,3]
[348149861,1736356237905,-500.0,0.00019452,3]
[348149862,1736356237913,-500.0,0.00019452,3]
[348149865,1736356237925,-500.0,0.00019452,3]
[348149867,1736356237933,-500.0,0.00019452,3]
[348149869,1736356237943,-500.0,0.0001955,2]
[348149871,1736356237952,-500.0,0.00019725,3]
[348149872,1736356237961,-500.0,0.00019726,3]
[348149875,1736356237971,-262.39,0.00019726,3]
[348149877,1736356237981,-500.0,0.00019726,3]
[348149879,1736356237991,-532.4,0.00019726,3]
[348149881,1736356238000,-188.98,0.00019726,3]
[348149883,1736356238010,-500.0,0.00019726,3]
[348149885,1736356238020,-500.0,0.00019726,3]
[348149887,1736356238036,-500.0,0.00019726,3]
[348149889,1736356238046,-515.07,0.00019726,3]
[348149891,1736356238056,-500.0,0.00019726,3]
[348149893,1736356238065,-500.0,0.00019726,3]
[348149895,1736356238075,-169.9,0.00019726,3]
[348149897,1736356238085,-226.03,0.00019726,3]
[348149899,1736356238094,-355.48,0.00019726,3]
[348149901,1736356238104,-233.67,0.00019726,3]
[348149903,1736356238113,-500.0,0.00019726,3]
[348149905,1736356238123,-500.0,0.00019726,3]
[348149907,1736356238133,-501.92,0.00019726,3]
[348149909,1736356238143,-500.0,0.00019726,3]
[348149912,1736356238152,-500.0,0.00019726,3]
[348149915,1736356238163,-500.0,0.00019726,3]
[348149918,1736356238172,-3186.03,0.00019726,3]
[348149921,1736356238182,-500.0,0.00019726,3]
[348149924,1736356238191,-500.0,0.00019726,3]
[348149927,1736356238201,-500.0,0.00019726,3]
[348149930,1736356238214,-500.0,0.00019726,3]
[348149932,1736356238226,-500.0,0.00019726,3]
[348149934,1736356238235,-500.0,0.00019726,3]
[348149936,1736356238245,-500.0,0.00019726,3]
[348149938,1736356238255,-500.0,0.00019726,3]
[348149940,1736356238264,-519.95,0.00019726,3]
[348149942,1736356238276,-500.0,0.00019726,3]
[348149944,1736356238287,-500.0,0.00019726,3]
[348149946,1736356238297,-500.0,0.00019726,3]
[348149948,1736356238306,-500.0,0.00019726,3]
[348149950,1736356238316,-500.0,0.00019726,3]
[348149952,1736356238327,-500.0,0.00019726,3]
[348149954,1736356238336,-500.0,0.00019726,3]
[348149956,1736356238345,-500.0,0.00019726,3]
[348149957,1736356238355,-500.0,0.00019726,3]
[348149959,1736356238365,-329.643537,0.000199,2]
[348149962,1736356238375,-3261.0,0.0002,2]
[348149964,1736356238385,-500.0,0.0002,3]
[348149966,1736356238395,-500.0,0.0002,3]
[348149968,1736356238404,-532.4,0.0002,3]
[348149970,1736356238414,-500.0,0.0002,3]
[348149972,1736356238424,-490.96,0.0002,3]
[348149974,1736356238434,-500.0,0.0002,3]
[348149976,1736356238444,-500.0,0.0002,3]
[348149977,1736356238454,-501.92,0.0002,3]
[348149979,1736356238463,-608.09,0.0002,3]
[348149981,1736356238473,-3186.03,0.0002,3]
[348149983,1736356238483,-500.0,0.0002,3]
[348149985,1736356238492,-500.0,0.0002,3]
[348149987,1736356238501,-500.0,0.0002,3]
[348149989,1736356238511,-456.54,0.0002,3]
[348149991,1736356238520,-500.0,0.0002,3]
[348149993,1736356238539,-500.0,0.0002,3]
[348149995,1736356238549,-500.0,0.0002,3]
[348149997,1736356238559,-500.0,0.0002,3]
[348149999,1736356238569,-500.0,0.0002,3]
[348150001,1736356238578,-519.95,0.0002,3]
[348150003,1736356238588,-500.0,0.0002,3]
[348150006,1736356238598,-500.0,0.0002,3]
[348150008,1736356238607,-500.0,0.0002,3]
[348150010,1736356238617,-500.0,0.0002,3]
[348150012,1736356238626,-245.16,0.0002,3]
[348150014,1736356238636,-500.0,0.0002,3]
[348150016,1736356238647,-500.0,0.0002,3]
[348150018,1736356238657,-500.0,0.0002,3]
[348150020,1736356238665,-329.64353688,0.00020038,2]
[348150022,1736356238675,-329.64353688,0.00020176,2]
[348150024,1736356238685,-500.0,0.00020273,3]
[348150026,1736356238695,-500.0,0.00020273,3]
[348150028,1736356238705,-532.4,0.00020273,3]
[348150030,1736356238715,-500.0,0.00020273,3]
[348150032,1736356238725,-501.92,0.00020273,3]
[348150034,1736356238735,-3186.03,0.00020273,3]
[348150036,1736356238745,-500.0,0.00020273,3]
[348150038,1736356238755,-500.0,0.00020273,3]
[348150040,1736356238764,-317.09,0.00020273,3]
[348150042,1736356238780,-500.0,0.00020273,3]
[348150044,1736356238789,-500.0,0.00020273,3]
[348150046,1736356238798,-289.34,0.00020273,3]
[348150048,1736356238808,-500.0,0.00020273,3]
[348150050,1736356238818,-500.0,0.00020273,3]
[348150052,1736356238828,-519.95,0.00020273,3]
[348150054,1736356238838,-502.14,0.00020273,3]
[348150056,1736356238847,-300.36,0.00020273,3]
[348150058,1736356238856,-319.99,0.00020273,3]
[348150061,1736356238867,-431.15775066,0.00020273,3]
[348150062,1736356238877,-500.0,0.00020273,3]
[348150064,1736356238890,-500.0,0.00020273,3]
[348150075,1736356238900,-500.0,0.00020273,3]
[348150077,1736356238992,-329.64353688,0.00020314,2]
[348150079,1736356239002,-329.64353688,0.00020452,2]
[348150081,1736356239013,-314.451547,0.00020521,2]
[348150083,1736356239023,-500.0,0.00020546,3]
[348150085,1736356239037,-500.0,0.00020547,3]
[348150087,1736356239047,-532.4,0.00020547,3]
[348150090,1736356239057,-500.0,0.00020547,3]
[348150092,1736356239068,-501.92,0.00020547,3]
[348150094,1736356239078,-3186.03,0.00020547,3]
[348150096,1736356239088,-500.0,0.00020547,3]
[348150098,1736356239097,-500.0,0.00020547,3]
[348150100,1736356239106,-500.0,0.00020547,3]
[348150102,1736356239116,-258.77,0.00020547,3]
[348150104,1736356239125,-500.0,0.00020547,3]
[348150106,1736356239135,-519.95,0.00020547,3]
[348150108,1736356239145,-422.33,0.00020547,3]
[348150110,1736356239155,-500.0,0.00020547,3]
[348150112,1736356239165,-500.0,0.00020547,3]
[348150114,1736356239174,-329.64353688,0.0002059,2]
[348150116,1736356239184,-394.0,0.00020724,2]
[348150118,1736356239194,-329.64353688,0.00020728,2]
[348150120,1736356239203,-151.0,0.00020821,2]
[348150122,1736356239214,-151.0,0.00020821,2]
[348150124,1736356239223,-500.0,0.00020821,3]
[348150126,1736356239233,-532.4,0.00020821,3]
[348150128,1736356239243,-500.0,0.00020821,3]
[348150130,1736356239253,-501.92,0.00020821,3]
[348150132,1736356239262,-3186.03,0.00020821,3]
[348150134,1736356239272,-500.0,0.00020821,3]
[348150136,1736356239289,-500.0,0.00020821,3]
[348150138,1736356239299,-232.32,0.00020821,3]
[348150140,1736356239309,-646.96,0.00020821,3]
[348150142,1736356239319,-519.95,0.00020821,3]
[348150144,1736356239328,-284.11,0.00020821,3]
[348150146,1736356239338,-629.245397,0.00020821,3]
[348150148,1736356239349,-329.64353688,0.00020866,2]
[348150150,1736356239358,-420.0,0.00020899,2]
[348150152,1736356239368,-3000.0,0.00021,2]
[348150154,1736356239378,-151.0,0.00021003,2]
[348150156,1736356239388,-500.0,0.00021003,3]
[348150158,1736356239397,-329.64353688,0.00021003,2]
[348150160,1736356239407,-3000.0,0.0002101,2]
[348150162,1736356239417,-3000.0,0.0002102,2]
[348150164,1736356239427,-3000.0,0.0002103,2]
[348150166,1736356239437,-3000.0,0.0002104,2]
[348150168,1736356239447,-3000.0,0.0002105,2]
[348150170,1736356239456,-3000.0,0.0002106,2]
[348150172,1736356239466,-3000.0,0.0002107,2]
[348150174,1736356239475,-3000.0,0.0002108,2]
[348150176,1736356239485,-3000.0,0.0002109,2]
[348150178,1736356239495,-500.0,0.00021094,3]
[348150180,1736356239505,-500.0,0.00021095,3]
[348150182,1736356239516,-532.4,0.00021095,3]
[348150184,1736356239529,-400.37,0.00021095,3]
[348150186,1736356239539,-501.92,0.00021095,3]
[348150188,1736356239549,-3186.03,0.00021095,3]
[348150191,1736356239559,-500.0,0.00021095,3]
[348150196,1736356239568,-500.0,0.00021095,3]
[348150198,1736356239577,-519.95,0.00021095,3]
[348150200,1736356239587,-3000.0,0.000211,2]
[348150203,1736356239596,-3762.272485,0.0002111,2]
[348150206,1736356239606,-329.64353688,0.00021141,2]
[348150208,1736356239616,-329.64353688,0.00021279,2]
[348150210,1736356239626,-353.0175454,0.00021288,2]
[348150212,1736356239636,-353.0175454,0.00021288,2]
[348150214,1736356239646,-353.0175454,0.00021288,2]
[348150216,1736356239656,-500.0,0.00021369,3]
[348150218,1736356239666,-532.4,0.00021369,3]
[348150220,1736356239675,-501.92,0.00021369,3]
[348150222,1736356239685,-3186.03,0.00021369,3]
[348150224,1736356239694,-610.03,0.00021369,3]
[348150226,1736356239704,-500.0,0.00021369,3]
[348150228,1736356239714,-519.95,0.00021369,3]
[348150230,1736356239724,-329.64353688,0.00021417,2]
[348150232,1736356239733,-329.64353688,0.00021555,2]
[348150234,1736356239744,-3261.0,0.000216,4]
[348150236,1736356239754,-500.0,0.00021643,3]
[348150238,1736356239763,-532.4,0.00021643,3]
[348150240,1736356239776,-501.92,0.00021643,3]
[348150242,1736356239786,-3186.03,0.00021643,3]
[348150244,1736356239795,-500.0,0.00021643,3]
[348150246,1736356239805,-519.95,0.00021643,3]
[348150248,1736356239815,-161.556691,0.00021661,2]
[348150250,1736356239824,-329.64353688,0.00021693,2]
[348150252,1736356239834,-329.64353688,0.00021831,2]
[348150254,1736356239844,-500.0,0.00021917,3]
[348150256,1736356239853,-532.4,0.00021917,3]
[348150259,1736356239868,-501.92,0.00021917,3]
[348150261,1736356239883,-3186.03,0.00021917,3]
[348150264,1736356239900,-500.0,0.00021917,3]
[348150266,1736356239912,-519.95,0.00021917,3]
[348150268,1736356239923,-329.64353688,0.00021969,2]
[348150271,1736356239937,-151.0,0.00022,2]
[348150273,1736356239950,-658.192,0.0002204,2]
[348150275,1736356239963,-536.219473,0.000221,10]
[348150278,1736356239977,-329.64353688,0.00022107,2]
[348150280,1736356239991,-500.0,0.00022151,2]
[348150282,1736356240005,-237.85926242,0.0002219,2]
[348150285,1736356240018,-500.0,0.00022191,3]
[348150287,1736356240036,-532.4,0.00022191,3]
[348150290,1736356240049,-501.92,0.00022191,3]
[348150292,1736356240062,-3186.03,0.00022191,3]
[348150294,1736356240074,-500.0,0.00022191,3]
[348150296,1736356240087,-519.95,0.00022191,3]
[348150299,1736356240101,-329.64353688,0.00022245,2]
[348150301,1736356240113,-196.1803786,0.00022247,2]
[348150303,1736356240125,-352.9020598,0.00022247,2]
[348150305,1736356240136,-574.7578487,0.00022247,2]
[348150308,1736356240149,-600.0,0.00022269,2]
[348150310,1736356240159,-329.64353688,0.00022383,2]
[348150312,1736356240173,-219.2305595,0.00022384,2]
[348150315,1736356240186,-542.79858155,0.000224,60]
[348150317,1736356240200,-500.0,0.00022464,3]
[348150319,1736356240213,-500.0,0.00022465,3]
[348150322,1736356240228,-532.4,0.00022465,3]
[348150324,1736356240245,-501.92,0.00022465,3]
[348150327,1736356240259,-3186.03,0.00022465,3]
[348150329,1736356240270,-500.0,0.00022465,3]
[348150331,1736356240284,-519.95,0.00022465,3]
[348150333,1736356240294,-329.64353688,0.00022521,2]
[348150335,1736356240305,-329.64353688,0.00022659,2]
[348150338,1736356240318,-1200.0,0.00022665,2]
[348150340,1736356240332,-503.03282137,0.00022697,2]
[348150343,1736356240346,-1002.1029134,0.00022699,2]
[348150345,1736356240357,-500.0,0.00022739,3]
[348150347,1736356240368,-532.4,0.00022739,3]
[348150349,1736356240379,-501.92,0.00022739,3]
[348150352,1736356240392,-3186.03,0.00022739,3]
[348150354,1736356240403,-500.0,0.00022739,3]
[348150356,1736356240414,-519.95,0.00022739,3]
[348150358,1736356240424,-2935.87090218,0.00022746,2]
[348150360,1736356240437,-587.0,0.00022776,2]
[348150363,1736356240449,-329.64353688,0.00022797,2]
[348150365,1736356240460,-809.29,0.000229,2]
[348150367,1736356240472,-329.64353688,0.00022934,2]
[348150369,1736356240483,-1000.0,0.00022937,2]
[348150371,1736356240495,-1000.0,0.00022955,2]
[348150373,1736356240506,-500.0,0.00023013,3]
[348150375,1736356240516,-532.4,0.00023013,3]
[348150378,1736356240531,-501.92,0.00023013,3]
[348150380,1736356240541,-3186.03,0.00023013,3]
[348150382,1736356240553,-500.0,0.00023013,3]
[348150384,1736356240565,-519.95,0.00023013,3]
[348150386,1736356240576,-151.0,0.00023014,2]
[348150387,1736356240587,-163.59718528,0.00023029,2]
[348150388,1736356240598,-329.64353688,0.00023072,2]
[348150390,1736356240609,-500.0,0.000231,8]
[348150392,1736356240620,-500.0,0.000231,8]
[348150394,1736356240631,-15312.41561058,0.000231,2]
[348150396,1736356240643,-152.11,0.000231,31]
[348150397,1736356240654,-152.11,0.000231,31]
[348150398,1736356240665,-152.11,0.000231,31]
[348150399,1736356240676,-152.11,0.000231,31]
[348150400,1736356240687,-152.11,0.000231,31]
[348150401,1736356240698,-152.11,0.000231,31]
[348150402,1736356240710,-152.11,0.000231,31]
[348150403,1736356240720,-15956.70708786,0.00023112,2]
[348150404,1736356240732,-500.0,0.00023182,3]
[348150405,1736356240744,-167.91354989,0.00023182,2]
[348150406,1736356240755,-151.0,0.00023183,7]
[348150407,1736356240766,-151.0,0.00023183,7]
[348150408,1736356240781,-162.735922,0.00023183,7]
[348150409,1736356240793,-500.0,0.00023183,3]
[348150410,1736356240805,-500.0,0.00023183,3]
[348150411,1736356240817,-500.0,0.00023183,3]
[348150412,1736356240826,-500.0,0.00023183,3]
[348150413,1736356240836,-500.0,0.00023183,3]
[348150414,1736356240846,-500.0,0.00023183,3]
[348150415,1736356240856,-500.0,0.00023183,3]
[348150416,1736356240866,-500.0,0.00023183,3]
[348150417,1736356240877,-500.0,0.00023183,3]